fUSD/lending_fUSD_20251028
["ID","MTS","AMOUNT","RATE_DAILY","PERIOD"]
[392565845,1761676243366,-500.0,0.00029899,3]
[392565846,1761676243375,-500.0,0.00029899,3]
[392565847,1761676243384,-500.0,0.00029899,3]
[392565848,1761676243394,-500.0,0.00029899,3]
[392565849,1761676243403,-500.0,0.00029899,3]
[392565850,1761676243412,-400.0,0.00029899,3]
[392565851,1761676243421,-500.0,0.00029899,3]
[392565852,1761676243431,-500.0,0.00029899,3]
[392565853,1761676243440,-500.0,0.00029899,3]
[392565854,1761676243449,-500.0,0.00029899,3]
[392565855,1761676243458,-500.0,0.00029899,3]
[392565856,1761676243467,-500.0,0.00029899,3]
[392565857,1761676243476,-500.0,0.00029899,3]
[392565858,1761676243486,-500.0,0.00029899,3]
[392565859,1761676243495,-500.0,0.00029899,3]
[392565860,1761676243505,-500.0,0.00029899,3]
[392565861,1761676243514,-500.0,0.00029899,3]
[392565862,1761676243524,-500.0,0.00029899,3]
[392565863,1761676243534,-500.0,0.00029899,3]
[392565864,1761676243544,-500.0,0.00029899,3]
[392565865,1761676243554,-500.0,0.00029899,3]
[392565866,1761676243563,-500.0,0.00029899,3]
[392565867,1761676243572,-500.0,0.00029899,3]
[392565868,1761676243582,-500.0,0.00029899,3]
[392565869,1761676243591,-500.0,0.00029899,3]
[392565870,1761676243601,-500.0,0.00029899,3]
[392565871,1761676243610,-598.59006632,0.00029899,3]
[392565872,1761676243620,-300.0,0.00029899,10]
[392565873,1761676243629,-666.0,0.00029899,10]
[392565874,1761676243638,-153.0,0.000299,5]
[392565875,1761676243648,-382951.01989404,0.000299,2]
[392565876,1761676243665,-168762.65478279,0.000299,2]
[392565877,1761676243674,-349.19210452,0.000299,2]
[392565878,1761676243684,-171.3471927,0.000299,2]
[392565879,1761676243693,-3153.0023433,0.000299,2]
[392565880,1761676243702,-500.0,0.000299,15]
[392565881,1761676243712,-151.0,0.000299,31]
[392565882,1761676243721,-153.732893,0.000299,31]
[392565883,1761676243730,-150.0,0.000299,7]
[392565884,1761676243740,-150.0,0.000299,7]
[392565885,1761676243749,-151.0,0.000299,31]
[392565886,1761676243759,-154.698467,0.000299,31]
[392565887,1761676243768,-151.0,0.000299,31]
[392565888,1761676243777,-152.963914,0.000299,31]
[392565889,1761676243787,-151.0,0.000299,30]
[392565890,1761676243796,-151.0,0.000299,31]
[392565891,1761676243805,-151.0,0.000299,31]
[392565892,1761676243815,-157.51247,0.000299,31]
[392565893,1761676243824,-151.0,0.000299,31]
[392565894,1761676243834,-151.0,0.000299,31]
[392565895,1761676243844,-153.967062,0.000299,31]
[392565896,1761676243854,-151.0,0.000299,31]
[392565897,1761676243864,-151.0,0.000299,31]
[392565898,1761676243874,-151.0,0.000299,31]
[392565899,1761676243884,-154.459944,0.000299,31]
[392565900,1761676243895,-157.780969,0.000299,31]
[392565901,1761676243904,-151.0,0.000299,31]
[392565902,1761676243914,-151.0,0.000299,14]
[392565903,1761676243923,-151.0,0.000299,14]
[392565904,1761676243933,-287819.63238424,0.000299,2]
[392565905,1761676243948,-622406.85121437,0.000299,2]
[392565914,1761676248364,-1826.66787879,0.000299,2]
[392565917,1761676599013,240.72,0.00014442,2]
[392565918,1761676599447,240.72,0.00015203,2]
[392565919,1761676599506,240.72,0.00015963,2]
[392565920,1761676599711,240.72,0.00016723,2]
[392565921,1761676599912,240.72,0.00017483,2]
[392565927,1761677203110,-240.72,0.00018243,2]
[392565928,1761677203132,-240.72,0.00019003,2]
[392565929,1761677203152,-194.83588474,0.00019178,2]
[392565930,1761677203176,-240.72,0.00019763,2]
[392565931,1761677203196,-162.50513089,0.00020067,2]
[392565932,1761677239353,-250.0,0.00020067,2]
[392565933,1761677239375,-250.0,0.00020067,2]
[392565934,1761677248520,-152.70130856,0.00020499,2]
[392565935,1761677251724,-257.89217977,0.00020499,2]
[392565937,1761677321589,-218.67711817,0.00020499,2]
[392565938,1761677358030,-240.72,0.00020524,2]
[392565946,1761677432409,-240.72,0.00021284,2]
[392565947,1761677432419,-240.72,0.00022044,2]
[392565948,1761677432428,-280.67857141,0.00022074,2]
[392565949,1761677432438,-240.72,0.00022804,2]
[392565950,1761677432447,-179.92,0.00023109,2]
[392565951,1761677432456,-240.72,0.00023564,2]
[392565952,1761677432466,-240.72,0.00024324,2]
[392565953,1761677432475,-240.72,0.00025084,2]
[392565954,1761677432484,-240.72,0.00025844,2]
[392565955,1761677432493,-240.72,0.00026605,2]
[392565956,1761677432503,-150.0,0.00026739,2]
[392565957,1761677432512,-1200.0,0.00027098,2]
[392565959,1761677432522,-150.0,0.00027099,2]
[392565960,1761677432531,-150.0,0.00027099,2]
[392565961,1761677432540,-208.55538238,0.00027099,2]
[392565962,1761677432549,-150.0,0.00027099,2]
[392565963,1761677432558,-150.0,0.00027099,2]
[392565964,1761677432567,-154.47723844,0.00027099,2]
[392565965,1761677432576,-228.66231237,0.00027099,2]
[392565966,1761677432586,-156.6900257,0.00027099,2]
[392565967,1761677432595,-154.35941027,0.00027099,2]
[392565968,1761677432605,-240.72,0.00027365,2]
[392565969,1761677432615,-500.0,0.00027402,2]
[392565970,1761677432624,-638.13225708,0.00027402,2]
[392565971,1761677432634,-151.0,0.00027402,2]
[392565972,1761677432643,-151.0,0.00027402,2]
[392565973,1761677432652,-151.0,0.00027402,2]
[392565974,1761677432661,-151.0,0.00027402,2]
[392565975,1761677432672,-151.0,0.00027402,2]
[392565976,1761677432683,-151.0,0.00027402,2]
[392565977,1761677432692,-151.0,0.00027402,2]
[392565978,1761677432701,-151.0,0.00027402,2]
[392565979,1761677432710,-151.0,0.00027402,2]
[392565980,1761677432720,-151.0,0.00027402,2]
[392565981,1761677432729,-151.0,0.00027402,2]
[392565982,1761677432738,-3167.59,0.00027419,2]
[392565983,1761677432748,-152.3560082,0.00027419,7]
[392565984,1761677432757,-231.71,0.00027439,2]
[392565985,1761677432768,-500.0,0.00027447,2]
[392565986,1761677432778,-999.0,0.00027454,3]
[392565987,1761677432788,-9316.18,0.00027502,2]
[392565988,1761677432798,-294.92,0.00027607,2]
[392565989,1761677432807,-625.27619479,0.00027694,2]
[392565990,1761677438091,-500.0,0.00027499,2]
[392565991,1761677438105,-500.0,0.00027499,2]
[392565992,1761677438115,-580.11801702,0.00027499,2]
[392565993,1761677438125,-10352.58380521,0.00027694,2]
[392565994,1761677438135,-5000.0,0.00027727,2]
[392565995,1761677438145,-424.09,0.00027739,2]
[392565996,1761677438155,-476.61195222,0.00027741,2]
[392565997,1761677438168,-294.92,0.000278,2]
[392565998,1761677438178,-150.0,0.0002781,2]
[392565999,1761677438189,-150.0,0.00027851,7]
[392566000,1761677438198,-294.92,0.00027993,2]
[392566001,1761677438209,-1000.0,0.00027998,2]
[392566002,1761677438219,-240.72,0.00028125,2]
[392566003,1761677438229,-294.92,0.00028187,2]
[392566004,1761677438240,-294.92,0.0002838,2]
[392566005,1761677438250,-697.92545036,0.00028404,2]
[392566006,1761677438262,-176.07454964,0.00028404,2]
[392566007,1761677438272,-500.0,0.00028404,2]
[392566008,1761677438282,-500.0,0.00028404,2]
[392566009,1761677438291,-500.0,0.00028404,2]
[392566010,1761677438304,-500.0,0.00028404,2]
[392566011,1761677438314,-500.0,0.00028404,2]
[392566012,1761677438324,-500.0,0.00028404,2]
[392566013,1761677438333,-500.0,0.00028404,2]
[392566014,1761677438343,-496.176383,0.00028404,2]
[392566021,1761677438414,-3.823617,0.00028404,2]
[392566023,1761677438424,-88.57926473,0.00028404,2]
[392566026,1761677438448,-411.42073527,0.00028404,2]
[392566028,1761677438458,-500.0,0.00028404,2]
[392566030,1761677438468,-11.97496837,0.00028404,2]
[392566033,1761677438479,-488.02503163,0.00028404,2]
[392566034,1761677438490,-69.90273994,0.00028404,2]
[392566037,1761677438502,-430.09726006,0.00028404,2]
[392566039,1761677438516,-500.0,0.00028404,2]
[392566042,1761677438526,-500.0,0.00028404,2]
[392566044,1761677438536,-382.35671099,0.00028404,2]
[392566045,1761677438552,-117.64328901,0.00028404,2]
[392566046,1761677438562,-500.0,0.00028404,2]
[392566047,1761677438572,-500.0,0.00028404,2]
[392566048,1761677438582,-500.0,0.00028404,2]
[392566049,1761677438592,-500.0,0.00028404,2]
[392566050,1761677438602,-574.12855637,0.00028404,2]
[392566051,1761677438612,-500.0,0.00028404,2]
[392566052,1761677438622,-337.22623762,0.00028404,2]
[392566053,1761677438690,-162.77376238,0.00028404,2]
[392566054,1761677438700,-91.05647762,0.00028404,2]
[392566067,1761677440141,-332.75644885,0.00028404,2]
[392566068,1761677440193,-76.18707353,0.00028404,2]
[392566069,1761677440203,-500.0,0.00028404,2]
[392566070,1761677440213,-112.29626053,0.00028404,2]
[392566071,1761677440225,-137.70373947,0.00028404,2]
[392566072,1761677440235,-500.0,0.00028404,2]
[392566073,1761677440246,-250.0,0.00028404,2]
[392566074,1761677440256,-500.0,0.00028404,2]
[392566075,1761677440265,-250.0,0.00028404,2]
[392566076,1761677440275,-500.0,0.00028404,2]
[392566077,1761677440285,-250.0,0.00028404,2]
[392566078,1761677440295,-500.0,0.00028404,2]
[392566079,1761677440304,-250.0,0.00028404,2]
[392566080,1761677440313,-409.79626053,0.00028404,2]
[392566081,1761677440337,-90.20373947,0.00028404,2]
[392566082,1761677440347,-250.0,0.00028404,2]
[392566083,1761677440356,-500.0,0.00028404,2]
[392566084,1761677440366,-250.0,0.00028404,2]
[392566085,1761677440375,-250.0,0.00028404,2]
[392566086,1761677440384,-57.01090994,0.00028404,2]
[392566096,1761677443594,-119.94455731,0.00028404,2]
[392566112,1761677446221,-73.04453275,0.00028404,2]
[392566113,1761677446231,-250.0,0.00028404,2]
[392566114,1761677446240,-193.42441339,0.00028404,2]
[392566115,1761677446532,-56.57558661,0.00028404,2]
[392566116,1761677446542,-248.26379263,0.00028404,2]
[392566117,1761677446551,-277.35679052,0.00028404,2]
[392566118,1761677446561,-322.6107,0.00028404,2]
[392566119,1761677446571,-250.0,0.00028404,2]
[392566120,1761677446580,-250.0,0.00028404,2]
[392566121,1761677446590,-250.0,0.00028404,2]
[392566122,1761677446599,-250.0,0.00028404,2]
[392566123,1761677446608,-250.0,0.00028404,2]
[392566124,1761677446617,-250.0,0.00028404,2]
[392566125,1761677446626,-500.0,0.00028411,2]
[392566126,1761677446636,-166.68,0.00028499,2]
[392566127,1761677446645,-294.92,0.00028573,2]
[392566128,1761677446655,-150.0,0.00028604,7]
[392566129,1761677446664,-294.92,0.00028766,2]
[392566130,1761677446673,-24.08416064,0.0002883,2]
[392566134,1761677468357,195.0,0.00028858,120]
[392566135,1761677468666,195.0,0.00028912,120]
[392566139,1761677883193,195.0,0.00028357,120]
[392566141,1761678268879,92.40288183,0.00013699,2]
[392566142,1761678268915,152.23711817,0.00013699,2]
[392566144,1761678488866,500.0,0.00031507,120]
[392566145,1761678491135,500.0,0.00031507,120]
[392566146,1761678492896,500.0,0.00031507,120]
[392566147,1761678556111,-244.64,0.00020187,2]
[392566148,1761678556132,-195.0,0.00021197,2]
[392566149,1761678556152,-340.79473711,0.00022206,2]
[392566150,1761678556172,-2500.0,0.00022206,2]
[392566151,1761678556192,-250.0,0.00022206,2]
[392566152,1761678556213,-1260.21274689,0.00022206,2]
[392566153,1761678575180,163.6092921,0.00031,120]
[392566157,1761678632332,-2773.99288338,0.00022206,2]
[392566158,1761678632388,-280.95705035,0.00022206,2]
[392566159,1761678632599,-714.67372829,0.00022206,2]
[392566160,1761678632609,-195.0,0.00022206,2]
[392566161,1761678632619,-226.0,0.00023381,2]
[392566162,1761678632628,-183.934052,0.00023382,2]
[392566163,1761678632638,-261.40211524,0.00023798,2]
[392566164,1761678632647,-223.72,0.00025039,2]
[392566165,1761678632657,-156.13,0.00025779,2]
[392566166,1761678632667,-150.0,0.00025779,2]
[392566167,1761678632677,-244.64,0.00026676,2]
[392566168,1761678632688,-707.0,0.00027,3]
[392566169,1761678632698,-150.0,0.00027099,2]
[392566170,1761678632707,-231.29298875,0.00027099,2]
[392566172,1761678632717,-150.0,0.00027099,2]
[392566174,1761678632727,-215.30284772,0.00027099,2]
[392566176,1761678632738,-150.0,0.00027099,2]
[392566178,1761678632748,-1680.41685934,0.000275,5]
[392566180,1761678632759,-1269.3013,0.000275,5]
[392566182,1761678632771,-2565.28184066,0.000275,5]
[392566183,1761678632780,-152.0794616,0.000275,7]
[392566185,1761678632789,-150.0,0.0002814,2]
[392566187,1761678632799,-1253.0,0.000282,2]
[392566189,1761678632809,-369.05,0.00028282,2]
[392566190,1761678632819,-200.0,0.0002837,2]
[392566192,1761678632828,-159.54,0.00028398,30]
[392566194,1761678632838,-476.19,0.000284,2]
[392566195,1761678632847,-697.31,0.000284,2]
[392566197,1761678632857,-175.56866856,0.00028401,2]
[392566199,1761678632866,-500.0,0.00028402,2]
[392566201,1761678632876,-500.0,0.00028402,2]
[392566203,1761678632884,-500.0,0.00028402,2]
[392566204,1761678632894,-500.0,0.00028402,2]
[392566207,1761678632902,-500.0,0.00028402,2]
[392566210,1761678632911,-500.0,0.00028402,2]
[392566213,1761678632921,-500.0,0.00028402,2]
[392566216,1761678632930,-500.0,0.00028402,2]
[392566218,1761678632940,-500.0,0.00028402,2]
[392566220,1761678632949,-500.0,0.00028402,2]
[392566222,1761678632958,-574.12855637,0.00028402,2]
[392566223,1761678632967,-500.0,0.00028402,2]
[392566225,1761678632976,-500.0,0.00028402,2]
[392566227,1761678632985,-500.0,0.00028402,2]
[392566229,1761678632995,-500.0,0.00028402,2]
[392566231,1761678633006,-500.0,0.00028402,2]
[392566233,1761678633015,-500.0,0.00028402,2]
[392566235,1761678633026,-500.0,0.00028402,2]
[392566236,1761678633036,-500.0,0.00028402,2]
[392566238,1761678633046,-500.0,0.00028402,2]
[392566240,1761678633056,-264.45834267,0.00028402,2]
[392566242,1761678633066,-500.0,0.00028402,2]
[392566244,1761678633076,-500.0,0.00028402,2]
[392566246,1761678633086,-500.0,0.00028402,2]
[392566248,1761678633096,-322.6107,0.00028402,2]
[392566249,1761678633106,-203.29316012,0.00028402,14]
[392566251,1761678633116,-4616.72,0.00028414,2]
[392566253,1761678633128,-519.08939512,0.00028418,2]
[392566255,1761678633139,-263.47796687,0.00028418,2]
[392566257,1761678633149,-66544.7576081,0.00028419,2]
[392566259,1761678633159,-280.9570504,0.00028419,2]
[392566261,1761678633169,-5195.1846145,0.00028419,2]
[392566263,1761678633179,-18747.8386386,0.00028419,2]
[392566264,1761678633189,-13234.8627587,0.00028419,2]
[392566265,1761678633199,-187.2737522,0.00028419,2]
[392566266,1761678633209,-250.0,0.00028434,2]
[392566267,1761678633219,-697.31,0.00028441,2]
[392566268,1761678633229,-476.19,0.00028441,2]
[392566269,1761678633239,-477.08133652,0.00028488,2]
[392566270,1761678633251,-697.31,0.000285,2]
[392566271,1761678633261,-476.19,0.000285,2]
[392566272,1761678633271,-476.19,0.000285,2]
[392566273,1761678633280,-697.31,0.000285,2]
[392566274,1761678633290,-476.19,0.000285,2]
[392566275,1761678633300,-697.31,0.000285,2]
[392566276,1761678633308,-159.85615,0.0002854,2]
[392566277,1761678633318,-216.9840124,0.00028646,2]
[392566278,1761678633327,-279.3476,0.00028824,2]
[392566279,1761678633338,-222.88583936,0.0002883,2]
[392566280,1761678633348,-240.72,0.00028885,2]
[392566281,1761678633358,-595.37131296,0.0002895,2]
[392566282,1761678633368,-200.0,0.00028956,2]
[392566283,1761678633378,-294.92,0.0002896,2]
[392566284,1761678633392,-231.71,0.00028963,2]
[392566285,1761678633402,-23535.72889626,0.00029,2]
[392566286,1761678633411,-835.41,0.00029009,2]
[392566287,1761678633421,-7757.56,0.00029009,2]
[392566288,1761678633431,-294.92,0.00029153,2]
[392566289,1761678633442,-168.0,0.00029199,2]
[392566290,1761678633452,-156.13,0.00029203,2]
[392566291,1761678633645,-369.05,0.00029343,2]
[392566292,1761678633655,-294.92,0.00029346,2]
[392566293,1761678633666,-617.40005154,0.00029498,2]
[392566294,1761678633676,-294.92,0.00029539,2]
[392566295,1761678633686,-159.85616,0.0002954,2]
[392566296,1761678633695,-168.0,0.00029604,7]
[392566297,1761678633704,-150.0,0.00029637,2]
[392566298,1761678633714,-550.82185846,0.00029644,2]
[392566299,1761678633723,-1425.0,0.00029679,2]
[392566300,1761678633733,-1425.0,0.00029685,2]
[392566301,1761678633742,-8240.73517232,0.0002969,2]
[392566302,1761678633752,-161.31795755,0.0002969,15]
[392566303,1761678633762,-305.2910567,0.0002969,2]
[392566304,1761678633771,-400.0,0.00029726,2]
[392566305,1761678633781,-294.92,0.00029733,2]
[392566306,1761678633791,-1425.0,0.0002977,2]
[392566307,1761678633800,-158.43013712,0.00029771,2]
[392566308,1761678633809,-1250.066,0.00029773,24]
[392566309,1761678633819,-1425.0,0.00029777,2]
[392566310,1761678633828,-27626.88306629,0.0002978,2]
[392566319,1761678640507,-403.79830888,0.00028909,2]
[392566320,1761678640561,-1740.69460548,0.00028909,2]
[392566324,1761678646368,-2002.03606343,0.00028909,2]
[392566325,1761678646528,-259.05916113,0.00028909,2]
[392566327,1761678744029,1057.0,0.000315,120]
[392566328,1761678745803,-164.0,0.00023,7]
[392566329,1761678746159,349.0,0.000315,120]
[392566330,1761678746946,476.0,0.000315,120]
[392566332,1761678802765,211.0,0.000315,120]
[392566333,1761678822856,388.96,0.00028458,120]
[392566339,1761679476923,193.94,0.00014074,2]
[392566340,1761679477349,193.94,0.00014815,2]
[392566341,1761679477589,193.94,0.00015556,2]
[392566342,1761679477846,193.94,0.00016297,2]
[392566343,1761679478116,193.94,0.00017037,2]
[392566344,1761679478321,193.94,0.00017778,2]
[392566346,1761679508450,975167.41919056,0.00015,2]
[392566347,1761679508485,5000.0,0.00015,2]
[392566348,1761679508709,1867650.90829376,0.00015,2]
[392566349,1761679508735,5000.0,0.00015,2]
[392566350,1761679508760,5000.0,0.00015,2]
[392566351,1761679508790,136000.0,0.00015,2]
[392566352,1761679508821,1825617.59628868,0.00015,2]
[392566353,1761679509646,-193.94,0.00018519,2]
[392566354,1761679509672,-193.94,0.0001926,2]
[392566355,1761679564161,4865.63961745,8e-05,2]
[392566358,1761679590154,-193.94,0.00020001,2]
[392566359,1761679590176,-193.94,0.00020741,2]
[392566360,1761679590196,-512.10285919,0.00021,2]
[392566363,1761679639781,2096.83753734,0.0001305,2]
[392566367,1761679671178,2189.93363625,0.00013,2]
[392566368,1761679677719,35713.22882641,0.00015,2]
[392566369,1761679677746,6115253.27124683,0.00015,2]
[392566371,1761679691887,2578.74519043,0.0001439,2]
[392566378,1761679705445,2052.12467797,0.00015,2]
[392566382,1761679723733,77925.00078467,0.00015,2]
[392566405,1761679831542,-1149.40805194,0.00021,2]
[392566406,1761679831555,-1808.91392983,0.00021,2]
[392566407,1761679831566,-506.27648684,0.00021,2]
[392566408,1761679831575,-51.21565444,0.00021482,2]
[392566409,1761679831652,-142.72434556,0.00021482,2]
[392566410,1761679831662,-164.0,0.00022,2]
[392566411,1761679831671,-277.82970303,0.00022,2]
[392566412,1761679831681,-193.94,0.00022223,2]
[392566413,1761679831691,-179.92,0.00022623,2]
[392566414,1761679831701,-62.04983618,0.00022964,2]
[392566415,1761679831716,-131.89016382,0.00022964,2]
[392566416,1761679831726,-164.0,0.00023014,7]
[392566417,1761679831737,-45.99630981,0.00023704,2]
[392566418,1761679831749,-147.94369019,0.00023704,2]
[392566419,1761679831758,-164.0,0.00024164,7]
[392566420,1761679831768,-775.80510749,0.00024443,2]
[392566421,1761679831777,-193.94,0.00024445,2]
[392566422,1761679831787,-4575.0,0.000248,5]
[392566423,1761679831796,-150.0,0.00024881,2]
[392566424,1761679831805,-300.0,0.00024999,2]
[392566425,1761679831815,-150.0,0.00025157,2]
[392566426,1761679831824,-193.94,0.00025186,2]
[392566427,1761679831834,-178.98,0.00025322,2]
[392566428,1761679831843,-193.94,0.00025927,2]
[392566429,1761679831852,-193.94,0.00026667,2]
[392566430,1761679831861,-150.0,0.00027,2]
[392566431,1761679831871,-150.0,0.00027,2]
[392566432,1761679831881,-246.46040071,0.00027,2]
[392566433,1761679831890,-500.0,0.00027028,2]
[392566434,1761679831899,-424.09,0.00027055,2]
[392566435,1761679831909,-420.0,0.00027082,2]
[392566436,1761679831920,-166.66,0.0002737,30]
[392566437,1761679831929,-198.85,0.00027371,2]
[392566438,1761679831940,-1993.70668161,0.00027371,2]
[392566439,1761679831960,-6.29331839,0.00027371,2]
[392566440,1761679831970,-193.94,0.00027408,2]
[392566441,1761679831980,-345.28148307,0.00027411,2]
[392566442,1761679831990,-198.85,0.00027562,2]
[392566443,1761679832000,-2000.0,0.000277,2]
[392566444,1761679832009,-476.61195222,0.0002772,2]
[392566445,1761679832019,-367.0,0.00027727,2]
[392566446,1761679832028,-198.85,0.00027754,2]
[392566447,1761679832037,-198.85,0.00027946,2]
[392566448,1761679832047,-71.3232463,0.00027946,30]
[392566449,1761679832058,-95.3367537,0.00027946,30]
[392566450,1761679832068,-150.0,0.00028,7]
[392566451,1761679832265,-287.61899177,0.00028061,2]
[392566452,1761679832275,-198.85,0.00028137,2]
[392566453,1761679832286,-193.94,0.00028149,2]
[392566454,1761679832296,-1000.0,0.00028193,2]
[392566455,1761679832306,-241.07994869,0.00028279,2]
[392566456,1761679832315,-198.85,0.00028329,2]
[392566457,1761679832324,-200.0,0.00028478,2]
[392566458,1761679832335,-1168.07,0.0002849,2]
[392566459,1761679832344,-198.85,0.0002852,2]
[392566460,1761679832354,-137.14011429,0.00028523,30]
[392566461,1761679835867,-29.51988571,0.00028523,30]
[392566462,1761679835877,-219.39,0.00028537,2]
[392566463,1761679835887,-198.85,0.00028712,2]
[392566464,1761679835896,-409.79266113,0.000288,2]
[392566465,1761679835907,-1607.30771664,0.000288,2]
[392566466,1761679835926,-302.61183806,0.000288,2]
[392566467,1761679835982,-5319.21180623,0.000288,2]
[392566469,1761679835994,-469.94203951,0.000288,2]
[392566510,1761679837484,-379.12448181,0.000288,2]
[392566511,1761679837496,-317.89948178,0.000288,2]
[392566512,1761679837649,-3334.18009,0.000288,2]
[392566513,1761679837704,-1103.51810934,0.000288,2]
[392566523,1761679839713,-17756.4117755,0.000288,2]
[392566524,1761679839723,-2243.5882245,0.00028832,2]
[392566525,1761679839764,-2483.24343614,0.00028832,2]
[392566526,1761679839773,-1910.4,0.0002886,2]
[392566527,1761679839783,-1000.0,0.000289,2]
[392566528,1761679839791,-198.85,0.00028903,2]
[392566529,1761679839802,-164.0,0.00028997,14]
[392566530,1761679839812,-150.0,0.00029,7]
[392566531,1761679839822,-168.0,0.0002903,2]
[392566532,1761679839831,-198.85,0.00029095,2]
[392566533,1761679839840,-216.9840126,0.00029096,2]
[392566534,1761679839849,-166.66,0.00029099,30]
[392566535,1761679839859,-1294.65428357,0.00029153,4]
[392566536,1761679839868,-400.0,0.00029178,2]
[392566537,1761679839878,-4019.5921991,0.00029224,2]
[392566538,1761679839887,-2139.2223,0.0002923,2]
[392566539,1761679839897,-198.85,0.00029287,2]
[392566540,1761679839906,-4963.26250084,0.000293,2]
[392566541,1761679839915,-151.0,0.00029312,2]
[392566542,1761679839925,-151.0,0.00029312,2]
[392566543,1761679839935,-500.0,0.00029312,2]
[392566544,1761679839945,-151.0,0.00029312,2]
[392566545,1761679839956,-500.0,0.00029312,2]
[392566546,1761679839968,-151.0,0.00029312,2]
[392566547,1761679839978,-500.0,0.00029312,2]
[392566548,1761679839988,-151.0,0.00029312,2]
[392566549,1761679839998,-500.0,0.00029312,2]
[392566550,1761679840008,-151.0,0.00029312,2]
[392566551,1761679840019,-500.0,0.00029312,2]
[392566552,1761679840029,-500.0,0.00029312,2]
[392566553,1761679840039,-151.0,0.00029312,2]
[392566554,1761679840048,-500.0,0.00029312,2]
[392566555,1761679840058,-151.0,0.00029312,2]
[392566556,1761679840068,-500.0,0.00029312,2]
[392566557,1761679840078,-334.5472959,0.00029312,2]
[392566558,1761679840087,-500.0,0.00029312,2]
[392566559,1761679840097,-151.0,0.00029312,2]
[392566560,1761679840108,-500.0,0.00029312,2]
[392566561,1761679840118,-500.0,0.00029312,2]
[392566562,1761679840128,-500.0,0.00029312,2]
[392566563,1761679840137,-151.0,0.00029312,2]
[392566564,1761679840146,-551.25967481,0.00029312,2]
[392566565,1761679840156,-500.0,0.00029312,2]
[392566566,1761679840166,-574.12855637,0.00029312,2]
[392566567,1761679840175,-151.0,0.00029312,2]
[392566568,1761679840185,-500.0,0.00029312,2]
[392566569,1761679840194,-151.0,0.00029312,2]
[392566570,1761679840204,-500.0,0.00029312,2]
[392566571,1761679840217,-151.0,0.00029312,2]
[392566572,1761679840226,-500.0,0.00029312,2]
[392566573,1761679840235,-151.0,0.00029312,2]
[392566574,1761679840244,-500.0,0.00029312,2]
[392566575,1761679840253,-151.0,0.00029312,2]
[392566576,1761679840263,-500.0,0.00029312,2]
[392566577,1761679840272,-151.0,0.00029312,2]
[392566578,1761679840281,-235.02964706,0.00029312,2]
[392566579,1761679840291,-151.0,0.00029312,2]
[392566580,1761679840300,-151.0,0.00029312,2]
[392566581,1761679840309,-151.0,0.00029312,2]
[392566582,1761679840318,-151.0,0.00029312,2]
[392566583,1761679840327,-363.36257658,0.00029329,2]
[392566584,1761679840336,-184.43457681,0.00029329,2]
[392566585,1761679840346,-20970.54172595,0.0002933,2]
[392566586,1761679840640,-2037.70557906,0.0002933,2]
[392566587,1761679840651,-400.886674,0.0002933,2]